lending/lending_fUSD_20250114
["ID","MTS","AMOUNT","RATE_DAILY","PERIOD"]
[348882454,1736849448161,-958.06,9.991e-05,2]
[348882456,1736849448173,-500.0,9.991e-05,2]
[348882459,1736849448184,-824.03,9.991e-05,2]
[348882461,1736849448194,-500.0,9.991e-05,2]
[348882463,1736849448206,-932.64,9.991e-05,2]
[348882465,1736849448217,-500.0,9.991e-05,2]
[348882467,1736849448228,-500.0,9.991e-05,2]
[348882470,1736849448239,-554.74,9.991e-05,2]
[348882472,1736849448252,-1633.72,9.991e-05,2]
[348882474,1736849448263,-500.0,9.991e-05,2]
[348882476,1736849448274,-1952.31,9.991e-05,2]
[348882478,1736849448285,-500.0,9.991e-05,2]
[348882480,1736849448296,-3519.31,9.991e-05,2]
[348882482,1736849448307,-8392.31,9.991e-05,2]
[348882485,1736849448319,-1775.03,9.991e-05,2]
[348882487,1736849448330,-947.81,9.991e-05,2]
[348882489,1736849448342,-2880.06,9.991e-05,2]
[348882491,1736849448353,-1000.0,9.991e-05,2]
[348882494,1736849448366,-500.0,9.991e-05,2]
[348882496,1736849448378,-941.9,9.991e-05,2]
[348882498,1736849448390,-869.5,9.991e-05,2]
[348882500,1736849448402,-500.0,9.991e-05,2]
[348882503,1736849448414,-2517.52,9.991e-05,2]
[348882505,1736849448425,-1444.53,9.991e-05,2]
[348882507,1736849448438,-1845.55,9.991e-05,2]
[348882509,1736849448449,-2291.07,9.991e-05,2]
[348882512,1736849448461,-500.0,9.991e-05,2]
[348882514,1736849448473,-332.3586977,9.992e-05,2]
[348882516,1736849448484,-500.0,9.998e-05,2]
[348882518,1736849448495,-150.0,9.999e-05,2]
[348882521,1736849448507,-150.0,9.999e-05,2]
[348882523,1736849448519,-150.949,9.999e-05,2]
[348882525,1736849448532,-150.0,9.999e-05,2]
[348882527,1736849448544,-150.0,9.999e-05,2]
[348882530,1736849448556,-150.0,9.999e-05,2]
[348882532,1736849448568,-252.05,9.999e-05,2]
[348882534,1736849448580,-150.0,9.999e-05,2]
[348882536,1736849448592,-1268.0,9.999e-05,2]
[348882538,1736849448603,-2016.0,9.999e-05,2]
[348882541,1736849448615,-150.0,9.999e-05,2]
[348882543,1736849448626,-635.0,9.999e-05,2]
[348882545,1736849448638,-1919.01,9.999e-05,2]
[348882547,1736849448649,-500.0,9.999e-05,2]
[348882549,1736849448661,-1439.79,9.999e-05,2]
[348882552,1736849448673,-3884.0,9.999e-05,2]
[348882554,1736849448685,-1612.45,9.999e-05,2]
[348882556,1736849448696,-3010.12,9.999e-05,2]
[348882558,1736849448707,-1414.26,9.999e-05,2]
[348882560,1736849448719,-1568.07,9.999e-05,2]
[348882563,1736849448731,-951.15,9.999e-05,2]
[348882565,1736849448743,-500.0,9.999e-05,2]
[348882567,1736849448755,-852.61,9.999e-05,2]
[348882569,1736849448767,-500.0,9.999e-05,2]
[348882571,1736849448779,-2093.16,9.999e-05,2]
[348882574,1736849448791,-1261.2,9.999e-05,2]
[348882576,1736849448804,-928.27,9.999e-05,2]
[348882578,1736849448816,-660.16,9.999e-05,2]
[348882580,1736849448828,-1175.16,9.999e-05,2]
[348882583,1736849448840,-1529.58,9.999e-05,2]
[348882585,1736849448852,-1946.79,9.999e-05,2]
[348882587,1736849448865,-500.0,9.999e-05,2]
[348882589,1736849448877,-414.64698901,9.999e-05,2]
[348882591,1736849448888,-987.0,9.999e-05,2]
[348882594,1736849448900,-213.15345972,0.0001,2]
[348882596,1736849448913,-265373.33088491,0.0001,2]
[348882598,1736849448925,-109207.7158543,0.0001,2]
[348882669,1736849449693,-68106.84587931,0.0001,2]
[348882671,1736849449705,-1838.3197628,0.0001,2]
[348882674,1736849449717,-578352.16587798,0.0001,2]
[348882737,1736849450518,-399.33683918,9.9e-05,2]
[348882739,1736849450529,-195.3087801,9.999e-05,2]
[348882741,1736849450627,-304.6912199,9.999e-05,2]
[348882742,1736849450636,-437.16583589,9.999e-05,2]
[348882743,1736849450647,-62.83416411,9.999e-05,2]
[348882744,1736849450657,-326.74662039,9.999e-05,2]
[348883170,1736849582395,5368.22636284,0.00023,120]
[348883171,1736849594014,151.01417,0.0002,120]
[348883172,1736849610721,151.01419,0.0002,120]
[348883175,1736849663461,-1063.4,8.818e-05,2]
[348883176,1736849663773,-607.95,8.818e-05,2]
[348883177,1736849663798,-2248.93,8.818e-05,2]
[348883178,1736849663821,-1079.72,8.818e-05,2]
[348883179,1736849787475,300.7,0.00023,120]
[348883180,1736849804839,2623.89,8.219e-05,2]
[348883183,1736850161229,5405.44166135,0.00023,120]
[348883185,1736850336913,8609.8,8e-05,2]
[348883186,1736850336938,23854.25228394,8e-05,2]
[348883200,1736850583477,1251.70688,8.178e-05,2]
[348883215,1736850631787,-637.82,8.564e-05,2]
[348883216,1736850631884,-1585.86617416,8.564e-05,2]
[348883217,1736850632048,-707.07731665,8.564e-05,2]
[348883218,1736850632060,-629.99914214,8.564e-05,2]
[348883219,1736850632075,-20339.23736705,8.564e-05,2]
[348883220,1736850632085,-433.88,8.66e-05,2]
[348883221,1736850632095,-250.0,8.692e-05,2]
[348883222,1736850632105,-1729.92,8.711e-05,2]
[348883223,1736850632117,-1852.42,8.721e-05,2]
[348883224,1736850632127,-4353.51,8.721e-05,2]
[348883225,1736850632136,-1287.02,8.721e-05,2]
[348883226,1736850632146,-1517.94,8.762e-05,2]
[348883227,1736850632155,-781.19645879,8.767e-05,2]
[348883228,1736850632167,-6027.75354121,8.767e-05,2]
[348883229,1736850632176,-2825.90458219,8.818e-05,2]
[348883230,1736850632245,-669.38053828,8.818e-05,2]
[348883231,1736850632256,-508.09487953,8.818e-05,2]
[348883232,1736850632266,-500.0,8.818e-05,2]
[348883233,1736850632276,-2058.23,8.818e-05,2]
[348883234,1736850632285,-4466.86,8.818e-05,2]
[348883235,1736850632295,-587.54,8.824e-05,2]
[348883236,1736850632304,-1236.77,8.887e-05,2]
[348883237,1736850632313,-250.0,8.952e-05,2]
[348883238,1736850632323,-1000.0,8.957e-05,2]
[348883239,1736850632332,-150.0,9e-05,2]
[348883240,1736850632342,-213.15345972,9e-05,2]
[348883241,1736850632351,-150.0,9e-05,2]
[348883242,1736850632363,-222.37492103,9e-05,2]
[348883243,1736850632374,-1268.92,9.031e-05,2]
[348883244,1736850632383,-4003.38,9.092e-05,2]
[348883245,1736850632393,-500.0,9.092e-05,2]
[348883246,1736850632403,-2058.23,9.092e-05,2]
[348883247,1736850632412,-4466.86,9.092e-05,2]
[348883248,1736850632422,-1220.6423,9.266e-05,2]
[348883249,1736850632431,-2278.7209,9.266e-05,2]
[348883250,1736850632440,-4003.38,9.366e-05,2]
[348883251,1736850632450,-500.0,9.366e-05,2]
[348883252,1736850632459,-2058.23,9.366e-05,2]
[348883253,1736850632468,-4466.86,9.366e-05,2]
[348883254,1736850632478,-2500.0,9.535e-05,2]
[348883255,1736850632488,-2500.0,9.535e-05,2]
[348883256,1736850632500,-7503.0,9.596e-05,2]
[348883257,1736850632509,-4003.38,9.64e-05,2]
[348883258,1736850632518,-500.0,9.64e-05,2]
[348883259,1736850632528,-2058.23,9.64e-05,2]
[348883260,1736850632538,-4466.86,9.64e-05,2]
[348883262,1736850632547,-299.99,9.67e-05,2]
[348883264,1736850632556,-291.97,9.67e-05,2]
[348883265,1736850632567,-150.99,9.67e-05,2]
[348883267,1736850632576,-9999.99,9.67e-05,2]
[348883269,1736850632585,-5207.39,9.67e-05,2]
[348883271,1736850632595,-1096.45809868,9.67e-05,2]
[348883274,1736850632609,-2096.90190132,9.67e-05,2]
[348883276,1736850632618,-9210.73,9.67e-05,2]
[348883278,1736850632627,-150.99,9.67e-05,2]
[348883280,1736850632637,-9999.99,9.67e-05,2]
[348883282,1736850632646,-433.88,9.742e-05,2]
[348883284,1736850632656,-245.1013244,9.8e-05,2]
[348883286,1736850632665,-2500.0,9.813e-05,2]
[348883288,1736850632674,-2922.3169,9.871e-05,2]
[348883290,1736850632683,-866.5956,9.871e-05,2]
[348883292,1736850632692,-300.0,9.9e-05,2]
[348883294,1736850632701,-500.0,9.912e-05,2]
[348883296,1736850632711,-500.0,9.912e-05,2]
[348883298,1736850632720,-500.0,9.912e-05,2]
[348883299,1736850632729,-500.0,9.912e-05,2]
[348883300,1736850632739,-500.0,9.912e-05,2]
[348883301,1736850632748,-500.0,9.912e-05,2]
[348883302,1736850632757,-500.0,9.912e-05,2]
[348883303,1736850632767,-500.0,9.912e-05,2]
[348883304,1736850632777,-500.0,9.912e-05,2]
[348883305,1736850632786,-523.89,9.912e-05,2]
[348883306,1736850632796,-611.99189917,9.912e-05,2]
[348883307,1736850632806,-500.0,9.912e-05,2]
[348883308,1736850632815,-500.0,9.912e-05,2]
[348883309,1736850632824,-500.0,9.912e-05,2]
[348883310,1736850632834,-500.0,9.912e-05,2]
[348883311,1736850632843,-500.0,9.912e-05,2]
[348883312,1736850632852,-799.48,9.912e-05,2]
[348883313,1736850632864,-500.0,9.912e-05,2]
[348883314,1736850632873,-500.0,9.912e-05,2]
[348883315,1736850632882,-500.0,9.912e-05,2]
[348883316,1736850632892,-500.0,9.912e-05,2]
[348883317,1736850632901,-500.0,9.912e-05,2]
[348883318,1736850632910,-500.0,9.912e-05,2]
[348883319,1736850632919,-500.0,9.912e-05,2]
[348883320,1736850632929,-500.0,9.912e-05,2]
[348883321,1736850632938,-567.62,9.912e-05,2]
[348883322,1736850632948,-500.0,9.912e-05,2]
[348883323,1736850632957,-500.0,9.912e-05,2]
[348883324,1736850632967,-500.0,9.912e-05,2]
[348883325,1736850632976,-500.0,9.912e-05,2]
[348883326,1736850632986,-500.0,9.912e-05,2]
[348883327,1736850632995,-500.0,9.912e-05,2]
[348883328,1736850633005,-500.0,9.912e-05,2]
[348883329,1736850633014,-160.79823974,9.912e-05,2]
[348883330,1736850633027,-339.20176026,9.912e-05,2]
[348883331,1736850633036,-500.0,9.912e-05,2]
[348883332,1736850633046,-315.30634761,9.912e-05,2]
[348883333,1736850637697,-380.92365239,9.912e-05,2]
[348883334,1736850637708,-248.97664081,9.912e-05,2]
[348883335,1736850637719,-699.92335919,9.912e-05,2]
[348883336,1736850637729,-500.0,9.912e-05,2]
[348883337,1736850637739,-719.01,9.912e-05,2]
[348883338,1736850637749,-1380.02,9.912e-05,2]
[348883339,1736850637758,-867.74,9.912e-05,2]
[348883340,1736850637768,-500.0,9.912e-05,2]
[348883341,1736850637778,-500.0,9.912e-05,2]
[348883342,1736850637788,-500.0,9.912e-05,2]
[348883343,1736850637798,-500.0,9.912e-05,2]
[348883344,1736850637808,-500.0,9.912e-05,2]
[348883345,1736850637817,-1363.53189505,9.912e-05,2]
[348883346,1736850637878,-3322.19810495,9.912e-05,2]
[348883347,1736850637888,-2897.49,9.912e-05,2]
[348883348,1736850637898,-500.0,9.912e-05,2]
[348883349,1736850637908,-4003.38,9.913e-05,2]
[348883350,1736850637918,-500.0,9.913e-05,2]
[348883351,1736850637927,-2058.23,9.913e-05,2]
[348883352,1736850637937,-4466.86,9.913e-05,2]
[348883353,1736850637946,-1322.55,9.97e-05,2]
[348883354,1736850637957,-1063.1,9.97e-05,2]
[348883355,1736850637966,-607.8,9.97e-05,2]
[348883356,1736850637976,-1929.14,9.97e-05,2]
[348883357,1736850637986,-640.84,9.97e-05,2]
[348883358,1736850637995,-1203.16,9.97e-05,2]
[348883359,1736850638005,-1048.46,9.97e-05,2]
[348883360,1736850638015,-500.0,9.97e-05,2]
[348883361,1736850638025,-111.93896432,9.97e-05,2]
[348883362,1736850638036,-2094.96983048,9.97e-05,2]
[348883369,1736850639930,-41.4812052,9.97e-05,2]
[348883370,1736850639940,-671.7187948,9.97e-05,2]
[348883371,1736850639951,-411.86,9.97e-05,2]
[348883372,1736850639962,-323.25,9.97e-05,2]
[348883373,1736850640008,-227.5412052,9.97e-05,2]
[348883374,1736850640017,-97.11421531,9.97e-05,2]
[348883375,1736850640046,-3253.09320003,9.97e-05,2]
[348883376,1736850640058,-441.54258466,9.97e-05,2]
[348883377,1736850640067,-2112.08,9.97e-05,2]
[348883378,1736850640076,-500.0,9.97e-05,2]
[348883379,1736850640085,-1464.49,9.97e-05,2]
[348883380,1736850640095,-2841.0,9.97e-05,2]
[348883381,1736850640104,-2391.11598931,9.97e-05,2]
[348883382,1736850640115,-323.52613563,9.97e-05,2]
[348883396,1736850643722,-794.54,9.912e-05,2]
[348883397,1736850643731,-870.89787506,9.97e-05,2]
[348883398,1736850643740,-1662.81,9.97e-05,2]
[348883399,1736850643750,-500.0,9.97e-05,2]
[348883400,1736850643759,-500.0,9.97e-05,2]
[348883401,1736850643768,-500.0,9.97e-05,2]
[348883402,1736850643778,-500.0,9.97e-05,2]
[348883403,1736850643788,-1158.37,9.97e-05,2]
[348883404,1736850643797,-500.0,9.97e-05,2]
[348883405,1736850643806,-1317.59,9.97e-05,2]
[348883406,1736850643815,-814.36,9.97e-05,2]
[348883407,1736850643824,-500.0,9.97e-05,2]
[348883408,1736850643833,-390.93212495,9.97e-05,2]
[348883409,1736850643854,-109.06787505,9.97e-05,2]
[348883410,1736850643863,-507.20683774,9.97e-05,2]
[348883411,1736850643873,-502.45473375,9.97e-05,2]
[348883412,1736850643882,-730.09,9.97e-05,2]
[348883413,1736850643892,-500.0,9.97e-05,2]
[348883414,1736850643901,-500.0,9.97e-05,2]
[348883415,1736850643910,-500.0,9.97e-05,2]
[348883416,1736850643919,-500.0,9.97e-05,2]
[348883417,1736850643928,-986.7791239,9.97e-05,2]
[348883418,1736850643939,-1341.7308761,9.97e-05,2]
[348883419,1736850643949,-101.7391099,9.97e-05,2]
[348883421,1736850644072,-407.31186103,9.97e-05,2]
[348883423,1736850644081,-500.0,9.97e-05,2]
[348883425,1736850644091,-503.3624657,9.97e-05,2]
[348883427,1736850644100,-503.38872572,9.97e-05,2]
[348883428,1736850644109,-500.0,9.97e-05,2]
[348883431,1736850644118,-500.0,9.97e-05,2]
[348883433,1736850644129,-165.372342,9.97e-05,2]
[348883434,1736850644140,-334.627658,9.97e-05,2]
[348883436,1736850644150,-502.7695534,9.97e-05,2]
[348883437,1736850644159,-500.0,9.97e-05,2]
[348883438,1736850644169,-500.0,9.971e-05,2]
[348883439,1736850644178,-41.55450621,9.971e-05,2]
[348883440,1736850644197,-458.44549379,9.971e-05,2]
[348883442,1736850644207,-500.0,9.971e-05,2]
[348883443,1736850644216,-911.24,9.971e-05,2]
[348883445,1736850644226,-500.0,9.971e-05,2]
[348883446,1736850644235,-500.0,9.971e-05,2]
[348883447,1736850644244,-500.0,9.971e-05,2]
[348883448,1736850644254,-500.0,9.971e-05,2]
[348883450,1736850644263,-500.0,9.971e-05,2]
[348883452,1736850644272,-500.0,9.971e-05,2]
[348883453,1736850644281,-723.42,9.971e-05,2]
[348883455,1736850644291,-500.0,9.971e-05,2]
[348883456,1736850644300,-500.0,9.971e-05,2]
[348883458,1736850644312,-500.0,9.971e-05,2]
[348883460,1736850644322,-500.0,9.971e-05,2]
[348883461,1736850644332,-653.97,9.971e-05,2]
[348883462,1736850644341,-187.34724921,9.971e-05,2]
[348883463,1736850644351,-500.0,9.971e-05,2]
[348883464,1736850644360,-500.0,9.971e-05,2]
[348883465,1736850644369,-578.07,9.971e-05,2]
[348883466,1736850644379,-500.0,9.971e-05,2]
[348883467,1736850644388,-500.0,9.971e-05,2]
[348883468,1736850644397,-812.68,9.971e-05,2]
[348883469,1736850644407,-500.0,9.971e-05,2]
[348883470,1736850644416,-866.25,9.971e-05,2]
[348883471,1736850644425,-500.0,9.971e-05,2]
[348883472,1736850644435,-644.94,9.971e-05,2]
[348883473,1736850644444,-500.0,9.971e-05,2]
[348883474,1736850644454,-500.0,9.971e-05,2]
[348883475,1736850644463,-500.0,9.971e-05,2]
[348883476,1736850644472,-851.99,9.971e-05,2]
[348883477,1736850644481,-500.0,9.971e-05,2]
[348883478,1736850644490,-500.0,9.971e-05,2]
[348883479,1736850644504,-940.28,9.971e-05,2]
[348883480,1736850644513,-500.0,9.971e-05,2]
[348883481,1736850644523,-500.20014029,9.971e-05,2]
[348883482,1736850644532,-500.0,9.971e-05,2]
[348883483,1736850644543,-500.0,9.971e-05,2]
[348883484,1736850644552,-500.0,9.971e-05,2]
[348883485,1736850644561,-501.40623838,9.971e-05,2]
[348883486,1736850644570,-500.0,9.971e-05,2]
[348883487,1736850644580,-500.0,9.971e-05,2]
[348883488,1736850644589,-500.0,9.971e-05,2]
[348883489,1736850644599,-626.18,9.971e-05,2]
[348883490,1736850644608,-501.15049344,9.971e-05,2]
[348883491,1736850644617,-500.0,9.971e-05,2]
[348883492,1736850644628,-503.8,9.971e-05,2]
[348883493,1736850644637,-500.92698064,9.971e-05,2]
[348883494,1736850644646,-500.0,9.971e-05,2]
[348883495,1736850644656,-500.93453485,9.971e-05,2]
[348883496,1736850644666,-500.0,9.971e-05,2]
[348883497,1736850644675,-500.0,9.971e-05,2]
[348883498,1736850644684,-656.25,9.971e-05,2]
[348883499,1736850644693,-500.0,9.971e-05,2]
[348883500,1736850644703,-784.87,9.971e-05,2]
[348883501,1736850644711,-500.0,9.971e-05,2]
[348883502,1736850644721,-310.77367922,9.971e-05,2]
[348883503,1736850644759,-322.72632078,9.971e-05,2]
[348883504,1736850644769,-501.56818994,9.971e-05,2]
[348883505,1736850644778,-546.37,9.971e-05,2]
[348883506,1736850644788,-711.17,9.971e-05,2]
[348883507,1736850644798,-500.0,9.971e-05,2]
[348883508,1736850644807,-500.0,9.971e-05,2]
[348883509,1736850644816,-500.0,9.971e-05,2]
[348883510,1736850644825,-500.0,9.971e-05,2]
[348883511,1736850644834,-501.81340784,9.971e-05,2]
[348883512,1736850644844,-500.0,9.971e-05,2]
[348883513,1736850644853,-500.0,9.971e-05,2]
[348883514,1736850644862,-500.0,9.971e-05,2]
[348883515,1736850644872,-500.0,9.971e-05,2]
[348883516,1736850644881,-500.0,9.971e-05,2]
[348883517,1736850644891,-500.0,9.971e-05,2]
[348883518,1736850644900,-498.69132494,9.971e-05,2]
[348883519,1736850644909,-500.0,9.971e-05,2]
[348883520,1736850644918,-500.0,9.971e-05,2]
[348883521,1736850644927,-500.0,9.971e-05,2]
[348883522,1736850644937,-500.0,9.971e-05,2]
[348883523,1736850644946,-500.0,9.971e-05,2]
[348883524,1736850644955,-500.0,9.971e-05,2]
[348883525,1736850644964,-500.0,9.971e-05,2]
[348883526,1736850644974,-545.95,9.971e-05,2]
[348883527,1736850644983,-889.99,9.971e-05,2]
[348883528,1736850644992,-500.0,9.971e-05,2]
[348883529,1736850645002,-500.0,9.971e-05,2]
[348883530,1736850645011,-500.0,9.971e-05,2]
[348883531,1736850645022,-500.0,9.971e-05,2]
[348883532,1736850645032,-500.0,9.971e-05,2]
[348883533,1736850645264,-500.0,9.971e-05,2]
[348883534,1736850645274,-500.0,9.971e-05,2]
[348883535,1736850645283,-844.9,9.971e-05,2]
[348883536,1736850645292,-500.0,9.971e-05,2]
[348883537,1736850645302,-500.0,9.971e-05,2]
[348883538,1736850645313,-500.0,9.971e-05,2]
[348883539,1736850645322,-1042.4,9.971e-05,2]
[348883540,1736850645332,-537.76,9.971e-05,2]
[348883541,1736850645341,-500.0,9.971e-05,2]
[348883542,1736850645351,-500.0,9.971e-05,2]
[348883543,1736850645360,-824.16,9.971e-05,2]
[348883544,1736850645371,-500.0,9.971e-05,2]
[348883545,1736850645381,-500.0,9.971e-05,2]
[348883546,1736850645390,-500.0,9.971e-05,2]
[348883547,1736850645399,-1011.9,9.971e-05,2]
[348883548,1736850645408,-1063.35,9.971e-05,2]
[348883549,1736850645417,-792.23,9.971e-05,2]
[348883550,1736850645426,-500.0,9.971e-05,2]
[348883551,1736850645435,-500.0,9.971e-05,2]
[348883552,1736850645444,-500.0,9.971e-05,2]
[348883553,1736850645453,-500.0,9.971e-05,2]
[348883554,1736850645463,-500.0,9.971e-05,2]
[348883555,1736850645472,-500.0,9.971e-05,2]
[348883556,1736850645481,-500.0,9.971e-05,2]
[348883557,1736850645491,-849.88,9.971e-05,2]
[348883558,1736850645503,-500.0,9.971e-05,2]
[348883559,1736850645512,-890.37,9.971e-05,2]
[348883560,1736850645521,-1007.86,9.971e-05,2]
[348883561,1736850645530,-516.52025277,9.971e-05,2]
[348883562,1736850645541,-500.0,9.971e-05,2]
[348883563,1736850645551,-500.0,9.971e-05,2]
[348883564,1736850645560,-1090.27,9.971e-05,2]
[348883565,1736850645571,-1036.0,9.971e-05,2]
[348883566,1736850645581,-986.978062,9.971e-05,2]
[348883567,1736850645591,-500.0,9.971e-05,2]
[348883568,1736850645600,-158.98037,9.971e-05,2]
[348883569,1736850645609,-826.41,9.971e-05,2]
[348883570,1736850645620,-500.0,9.971e-05,2]
[348883571,1736850645630,-500.0,9.971e-05,2]
[348883572,1736850645641,-500.0,9.971e-05,2]
[348883573,1736850645651,-500.0,9.971e-05,2]
[348883574,1736850645660,-156.894466,9.971e-05,2]
[348883575,1736850645670,-738.77,9.971e-05,2]
[348883576,1736850645679,-500.0,9.971e-05,2]
[348883577,1736850645688,-500.0,9.971e-05,2]
[348883580,1736850645698,-500.0,9.971e-05,2]
[348883582,1736850645708,-762.36,9.971e-05,2]
[348883584,1736850645717,-500.0,9.971e-05,2]
[348883586,1736850645726,-2860.2,9.971e-05,2]
[348883587,1736850645735,-500.0,9.971e-05,2]
[348883588,1736850645744,-1392.67,9.971e-05,2]
[348883589,1736850645753,-500.0,9.971e-05,2]
[348883590,1736850645763,-2673.7,9.971e-05,2]
[348883591,1736850645772,-753.65,9.971e-05,2]
[348883592,1736850645782,-7155.23,9.971e-05,2]
[348883593,1736850645791,-696.27,9.971e-05,2]
[348883594,1736850645801,-500.0,9.971e-05,2]
[348883595,1736850645810,-500.0,9.971e-05,2]
[348883596,1736850645819,-500.0,9.971e-05,2]
[348883597,1736850645829,-905.46,9.971e-05,2]
[348883598,1736850645838,-1028.83,9.971e-05,2]
[348883599,1736850645847,-1293.04,9.971e-05,2]
[348883600,1736850645856,-500.0,9.971e-05,2]
[348883601,1736850645865,-907.4,9.971e-05,2]
[348883602,1736850645876,-500.0,9.971e-05,2]
[348883603,1736850645885,-661.92,9.971e-05,2]
[348883604,1736850645894,-6429.41,9.971e-05,2]
[348883605,1736850645903,-500.0,9.971e-05,2]
[348883606,1736850645912,-1129.81,9.971e-05,2]
[348883607,1736850645921,-3353.06,9.971e-05,2]
[348883608,1736850645930,-829.25,9.971e-05,2]
[348883609,1736850645939,-2506.07,9.971e-05,2]
[348883610,1736850645948,-862.75,9.971e-05,2]
[348883611,1736850645957,-3801.86,9.971e-05,2]
[348883612,1736850645966,-1103.38,9.971e-05,2]
[348883613,1736850645974,-500.0,9.971e-05,2]
[348883614,1736850645982,-500.0,9.971e-05,2]
[348883615,1736850645990,-628.01,9.971e-05,2]
[348883616,1736850646002,-1370.72,9.971e-05,2]
[348883617,1736850646011,-500.0,9.971e-05,2]
[348883618,1736850646020,-500.0,9.971e-05,2]
[348883619,1736850646029,-561.64,9.971e-05,2]
[348883620,1736850646038,-615.9,9.971e-05,2]
[348883621,1736850646047,-673.17,9.971e-05,2]
[348883622,1736850646056,-500.0,9.971e-05,2]
[348883623,1736850646066,-500.0,9.971e-05,2]
[348883624,1736850646074,-537.3,9.971e-05,2]
[348883625,1736850646084,-500.0,9.971e-05,2]
[348883626,1736850646094,-2039.14,9.971e-05,2]
[348883627,1736850646103,-500.0,9.971e-05,2]
[348883628,1736850646112,-741.99,9.971e-05,2]
[348883629,1736850646123,-500.0,9.971e-05,2]
[348883630,1736850646133,-802.51,9.971e-05,2]
[348883631,1736850646143,-1136.62,9.971e-05,2]
[348883632,1736850646152,-500.0,9.971e-05,2]
[348883633,1736850646162,-500.0,9.971e-05,2]
[348883635,1736850646171,-500.0,9.971e-05,2]
[348883636,1736850646180,-500.0,9.971e-05,2]
[348883637,1736850646190,-500.0,9.971e-05,2]
[348883638,1736850646199,-500.0,9.971e-05,2]
[348883639,1736850646212,-3757.84,9.971e-05,2]
[348883640,1736850646221,-500.0,9.971e-05,2]
[348883641,1736850646230,-500.0,9.971e-05,2]
[348883642,1736850646239,-500.0,9.972e-05,2]
[348883643,1736850646248,-500.0,9.972e-05,2]
[348883644,1736850646257,-500.0,9.972e-05,2]
[348883645,1736850646266,-500.0,9.972e-05,2]
[348883646,1736850646278,-500.0,9.972e-05,2]
[348883647,1736850646288,-500.0,9.972e-05,2]
[348883648,1736850646297,-500.0,9.972e-05,2]
[348883649,1736850646306,-500.0,9.972e-05,2]
[348883650,1736850646315,-500.0,9.972e-05,2]
[348883651,1736850646324,-500.0,9.972e-05,2]
[348883652,1736850646333,-500.0,9.972e-05,2]
[348883653,1736850646343,-500.0,9.972e-05,2]
[348883654,1736850646352,-958.06,9.972e-05,2]
[348883655,1736850646361,-500.0,9.972e-05,2]
[348883656,1736850646372,-500.0,9.972e-05,2]
[348883657,1736850646381,-824.03,9.972e-05,2]
[348883658,1736850646391,-500.0,9.972e-05,2]
[348883659,1736850646400,-1449.14,9.972e-05,2]
[348883660,1736850646408,-932.64,9.972e-05,2]
[348883661,1736850646418,-500.0,9.972e-05,2]
[348883662,1736850646426,-500.0,9.972e-05,2]
[348883663,1736850646436,-1120.19,9.972e-05,2]
[348883664,1736850646445,-554.74,9.972e-05,2]
[348883665,1736850646454,-500.0,9.972e-05,2]
[348883666,1736850646463,-500.0,9.972e-05,2]
[348883667,1736850646472,-1522.2,9.972e-05,2]
[348883668,1736850646482,-500.0,9.972e-05,2]
[348883669,1736850646492,-1501.55,9.972e-05,2]
[348883670,1736850646504,-1919.01,9.972e-05,2]
[348883671,1736850646514,-1439.79,9.972e-05,2]
[348883672,1736850646523,-3884.0,9.972e-05,2]
[348883673,1736850646532,-1612.45,9.972e-05,2]
[348883674,1736850646543,-3010.12,9.972e-05,2]
[348883675,1736850646553,-1414.26,9.972e-05,2]
[348883676,1736850646562,-1568.07,9.972e-05,2]
[348883677,1736850646573,-2093.16,9.972e-05,2]
[348883678,1736850646582,-500.0,9.972e-05,2]
[348883679,1736850646591,-852.61,9.972e-05,2]
[348883680,1736850646601,-374.0,9.973e-05,2]
[348883681,1736850646610,-613.0,9.973e-05,2]
[348883682,1736850646623,-177.61895093,9.973e-05,2]
[348883683,1736850646632,-414.61436255,9.973e-05,2]
[348883684,1736850646642,-164.22453056,9.973e-05,2]
[348883685,1736850646651,-500.0,9.973e-05,2]